bitfinex-derivatives/quotes_SOLF0:USTF0_20241120
["timestamp","ask_amount","ask_price","bid_price","bid_amount"]
[1732132953230,2.52,232.25,232.12,1.3337]
[1732132953533,2.52,232.25,232.15,2.1515]
[1732132953925,2.52,232.25,232.12,1.3337]
[1732132954125,2.1511,232.19,232.14,2.1516]
[1732132955331,2.1513,232.17,232.12,3.4854]
[1732132955530,2.52,232.25,232.12,1.3337]
[1732132957327,2.52,232.25,232.12,3.4854]
[1732132957731,2.1509,232.22,232.12,3.4854]
[1732132957929,2.52,232.25,232.12,2.1517]
[1732132958230,3.3911,232.25,232.12,2.1517]
[1732132958430,2.1513,232.17,232.12,2.1517]
[1732132958629,2.1513,232.17,232.04,2.52]
[1732132959932,2.1513,232.17,232.12,2.1517]
[1732132960229,2.1514,232.16,232.12,2.1517]
[1732132961132,2.13979289,232.19,232.12,2.1517]
[1732132961334,3.01,232.15,232.12,2.1517]
[1732132963430,3.01,232.15,232.08,10.68001762]
[1732132963634,3.01,232.15,232.14,2.1516]
[1732132964328,3.01,232.15,232.13,2.1516]
[1732132966037,3.01,232.15,232.14,2.1516]
[1732132966432,3.01,232.15,232.05,1.2837]
[1732132966736,3.01,232.15,232.07,10.68001762]
[1732132967731,5.1616,232.15,232.07,10.68001762]
[1732132969433,5.1616,232.15,232.1,2.1518]
[1732132969635,3.01,232.15,232.1,10.68001762]
[1732132970031,3.01,232.15,232.14,2.1516]
[1732132970437,3.01,232.15,232.04,0.39578]
[1732132970641,3.01,232.15,232.07,10.68001762]
[1732132972141,2.1516,232.14,232.1,2.1519]
[1732132972336,3.01,232.15,232.07,10.68001762]
[1732132972837,3.01,232.15,232.11,2.1518]
[1732132973741,3.01,232.15,232.1,10.68001762]
[1732132974240,3.01,232.15,232.14,2.1516]
[1732132976240,3.01,232.15,232.1,10.68001762]
[1732132976441,3.01,232.15,232.13,2.1516]
[1732132976936,3.01,232.15,232.14,2.1516]
[1732132977342,3.01,232.15,232.11,2.5324]
[1732132977939,3.01,232.15,232.11,13.21241762]
[1732132978143,3.01,232.15,232.14,2.1516]
[1732132978144,0.9864,232.15,232.14,2.1516]
[1732132978541,2.1509,232.21,232.16,2.1513]
[1732132978933,10.68001762,232.22,232.04,0.39578]
[1732132979136,10.68001762,232.22,232.07,11.91821762]
[1732132979935,2.1512,232.19,232.14,2.1515]
[1732132980238,10.68001762,232.22,232.07,11.91821762]
[1732132981344,2.1512,232.18,232.12,2.1517]
[1732132981542,10.68001762,232.22,232.12,2.1517]
[1732132981940,2.151,232.21,232.17,4.51599282]
[1732132982140,10.68001762,232.19,232.17,4.51599282]
[1732132982341,2.20089093,232.18,232.17,4.51599282]
[1732132982543,6.87209093,232.18,232.17,3.52959282]
[1732132982737,6.87209093,232.18,232.17,1.68909282]
[1732132983340,4.72089093,232.18,232.05,5.92687033]
[1732132983540,10.68001762,232.08,232.0,50.0]
[1732132983942,2.1525,232.05,232.01,2.1528]
[1732132984141,10.68001762,232.05,232.0,50.0]
[1732132984552,10.68001762,232.08,232.03,2.1526]
[1732132984936,10.68001762,232.08,232.0,50.0]
[1732132985343,2.1523,232.07,232.02,2.1526]
[1732132985539,13.20001762,232.11,232.07,0.35646]
[1732132985745,2.1519,232.1,232.07,0.35646]
[1732132986344,15.35191762,232.11,232.07,0.35646]
[1732132986843,13.20001762,232.11,232.07,0.35646]
[1732132987145,2.1521,232.08,232.07,0.35646]
[1732132987749,13.20001762,232.11,232.07,0.35646]
[1732132988549,2.1521,232.08,232.07,0.35646]
[1732132990642,12.83211762,232.08,232.07,0.35646]
[1732132990844,2.1521,232.08,232.07,0.35646]
[1732132991142,2.52,232.11,232.07,0.35646]
[1732132991143,2.152,232.1,232.07,0.35646]
[1732132991339,2.52,232.11,232.07,0.35646]
[1732132991745,2.1521,232.08,232.07,0.35646]
[1732132993249,2.1528,232.01,232.0,50.0]
[1732132997350,12.88522719,232.01,231.91,2.1537]
[1732132997550,12.88522719,232.01,231.87,10.68001762]
[1732132997551,10.68001762,232.01,231.87,10.68001762]
[1732132997757,10.68001762,232.01,231.91,2.1537]
[1732132997950,2.1532,231.97,231.87,10.68001762]
[1732132998255,10.68001762,231.98,231.84,10.68001762]
[1732132998556,2.1536,231.92,231.84,10.68001762]
[1732132998950,2.1536,231.92,231.87,2.154]
[1732132999248,10.68001762,231.95,231.83,6.4041]
[1732132999453,10.68001762,231.92,231.83,8.5584]
[1732132999647,13.20001762,231.92,231.75,10.68001762]
[1732132999850,13.20001762,231.92,231.76,3.8841]
[1732133000046,13.20001762,231.92,231.81,2.1546]
[1732133000351,10.68001762,231.89,231.81,2.1546]
[1732133001560,10.68001762,231.89,231.76,3.8841]
[1732133001758,2.1542,231.86,231.76,3.8841]
[1732133001957,13.20001762,231.92,231.83,2.1544]
[1732133002151,13.20001762,231.92,231.79,10.68001762]
[1732133002456,2.1539,231.9,231.8,2.52]
[1732133002660,13.20001762,231.92,231.84,2.1543]
[1732133002854,2.1536,231.93,231.82,10.68001762]
[1732133003059,10.68001762,232.01,231.85,10.68001762]
[1732133003257,0.3732,232.06,231.94,2.1534]
[1732133003258,10.68001762,232.04,231.94,2.1534]
[1732133004053,2.1528,232.01,231.95,2.1532]
[1732133004261,2.1528,232.01,231.92,2.52]
[1732133004757,2.1529,232.0,231.95,2.1533]
[1732133005961,2.1527,232.02,231.97,2.1531]
[1732133006158,10.68001762,232.07,231.94,10.68001762]
[1732133006358,10.68001762,232.07,231.92,2.52]
[1732133006359,2.52,232.09,231.97,10.68001762]
[1732133006562,10.68001762,232.1,231.98,6.4656]
[1732133007065,2.1522,232.07,231.98,6.4656]
[1732133007362,13.20001762,232.13,231.98,6.4656]
[1732133007563,13.20001762,232.13,232.02,2.1527]
[1732133008064,2.1522,232.07,232.02,2.1527]
[1732133008460,10.68001762,232.07,231.98,6.4656]
[1732133008872,10.68001762,232.1,231.99,2.1529]
[1732133009368,2.1524,232.06,231.98,6.4656]
[1732133009669,10.68001762,232.1,231.98,6.4656]
[1732133010063,2.1523,232.06,232.0,2.1528]
[1732133010260,10.68001762,232.1,231.98,6.4656]
[1732133011271,2.1523,232.06,232.02,2.1527]
[1732133011564,10.68001762,232.1,231.98,6.4656]
[1732133012068,10.68001762,232.1,231.99,2.1529]
[1732133012570,10.68001762,232.07,231.98,6.4656]
[1732133012965,10.68001762,232.07,231.98,3.9456]
[1732133013468,10.68001762,232.1,231.98,3.9456]
[1732133014065,2.1525,232.05,231.99,2.1529]
[1732133014268,2.1525,232.05,231.98,3.9456]
[1732133014567,2.52,232.13,232.0,10.68001762]
[1732133014870,10.68001762,232.12,232.01,2.52]
[1732133015270,10.68001762,232.12,232.04,2.1525]
[1732133015271,2.1521,232.08,232.04,2.1525]
[1732133015470,2.1521,232.08,232.01,2.52]
[1732133015672,2.1522,232.07,232.01,2.52]
[1732133016964,2.1523,232.06,232.01,4.6727]
[1732133017165,2.1523,232.06,232.01,2.52]
[1732133018361,2.1523,232.06,232.02,2.1527]
[1732133018971,3.01,232.05,232.02,2.1527]
[1732133020169,3.01,232.05,232.03,2.1526]
[1732133023969,3.01,232.05,232.01,2.52]
[1732133024167,3.01,232.05,232.04,2.1525]
[1732133024865,3.01,232.05,232.04,8.99335955]
[1732133026272,0.9851,232.05,232.04,8.99335955]
[1732133026674,2.1521,232.08,232.04,6.84085955]
[1732133026876,2.1521,232.08,232.05,2.1524]
[1732133027373,2.1522,232.07,232.04,6.84085955]
[1732133027576,6.84085955,232.1,232.04,6.84085955]
[1732133029477,2.1521,232.08,232.05,2.1524]
[1732133031477,2.52,232.13,232.06,6.84085955]
[1732133031673,9.36085955,232.13,232.06,8.99315955]
[1732133031879,6.84085955,232.11,232.06,8.99315955]
[1732133032076,2.1521,232.09,232.06,2.1523]
[1732133032677,2.1521,232.09,232.04,6.84085955]
[1732133032678,2.152,232.09,232.05,2.1524]
[1732133032872,6.84085955,232.11,232.05,2.1524]
[1732133033980,6.84085955,232.11,232.06,2.1523]
[1732133034683,2.1521,232.09,232.06,2.1523]
[1732133034883,2.52,232.16,232.08,8.99295955]
[1732133035084,2.1518,232.12,232.08,8.99295955]
[1732133035380,6.84085955,232.14,232.08,6.84085955]
[1732133035591,2.1518,232.11,232.08,6.84085955]
[1732133036283,2.20089093,232.18,232.08,6.84085955]
[1732133036585,36.65786305,232.2,232.14,6.84085955]
[1732133036780,2.1514,232.16,232.09,2.4696]
[1732133036985,6.84085955,232.18,232.11,6.84085955]
[1732133037488,2.1514,232.17,232.12,2.1517]
[1732133037991,2.1514,232.17,232.13,8.99255955]
[1732133038587,2.1514,232.16,232.13,8.99255955]
[1732133038989,29.8170035,232.2,232.15,2.1515]
[1732133039185,29.8170035,232.2,232.09,3.7492]
[1732133039386,6.84085955,232.15,232.1,6.84085955]
[1732133039785,8.99245955,232.15,232.1,6.84085955]
[1732133040388,2.1516,232.15,232.1,6.84085955]
[1732133040584,2.1516,232.14,232.1,8.99275955]
[1732133040985,6.84085955,232.17,232.1,8.99275955]
[1732133041293,6.84085955,232.17,232.11,2.1518]
[1732133041294,2.1515,232.15,232.11,2.1518]
[1732133041483,2.52,232.27,232.14,6.84085955]
[1732133041785,6.84085955,232.22,232.14,6.84085955]
[1732133041994,2.1513,232.17,232.14,6.84085955]
[1732133042686,6.84085955,232.18,232.09,3.7492]
[1732133042888,2.1799847,232.24,232.09,3.7492]
[1732133042889,6.84085955,232.16,232.09,3.7492]
[1732133043190,2.1516,232.14,232.09,2.4696]
[1732133043387,6.84085955,232.16,232.09,2.4696]
[1732133043889,2.1517,232.13,232.09,4.6216]
[1732133044188,6.84085955,232.16,232.09,2.4696]
[1732133045086,6.84085955,232.16,232.05,2.52]
[1732133045087,2.1519,232.1,232.05,8.99325955]
[1732133045287,2.1519,232.1,232.05,6.84085955]
[1732133045492,6.84085955,232.14,232.05,6.84085955]
[1732133046195,2.1518,232.11,232.06,2.1523]
[1732133046389,6.84085955,232.12,232.06,2.1523]
[1732133047197,2.1519,232.1,232.06,2.1523]
[1732133048098,2.1521,232.09,232.05,2.1524]
[1732133048601,2.1522,232.07,232.02,2.52]
[1732133048896,6.84085955,232.06,232.0,2.5525]
[1732133049295,6.84085955,232.06,232.0,4.7053]
[1732133051300,6.84085955,232.06,232.01,2.1527]
[1732133051495,6.84085955,232.06,232.0,2.5525]
[1732133051698,6.84085955,232.06,231.98,6.84085955]
[1732133051699,6.84085955,232.01,231.82,120.68070725]
[1732133051890,8.99385955,231.99,231.94,2.1534]
[1732133052201,6.84085955,231.99,231.92,6.84085955]
[1732133052594,6.84085955,231.99,231.94,2.1533]
[1732133053096,2.1533,231.96,231.91,2.1536]
[1732133053298,6.84085955,231.97,231.89,6.84085955]
[1732133053502,6.84085955,231.95,231.89,6.84085955]
[1732133053900,6.84085955,231.95,231.91,2.1537]
[1732133054100,2.1532,231.96,231.89,6.84085955]
[1732133054598,6.84085955,231.97,231.89,6.84085955]
[1732133054599,6.84085955,231.97,231.91,2.1537]
[1732133054896,2.52,232.0,231.91,2.1537]
[1732133056197,2.1533,231.96,231.91,2.1537]
[1732133056398,2.52,232.0,231.88,3.9085]
[1732133056697,13.22115723,232.04,231.9,10.70115723]
[1732133057793,2.1528,232.01,231.9,10.70115723]
[1732133058899,2.1529,232.0,231.9,10.70115723]
[1732133059101,13.22115723,232.04,231.9,10.70115723]
[1732133059297,2.52,232.04,231.93,10.70115723]
[1732133059602,2.52,232.08,231.96,10.70115723]
[1732133059794,2.52,232.08,231.97,2.5871]
[1732133059995,2.52,232.09,231.97,2.5871]
[1732133060195,2.1525,232.05,232.0,2.1528]
[1732133061006,3.01,232.1,232.02,10.70115723]
[1732133061702,3.01,232.1,232.01,2.52]
[1732133062407,2.152,232.09,232.04,2.1525]
[1732133063101,3.01,232.1,232.02,2.1526]
[1732133063102,2.1523,232.07,232.02,2.1526]
[1732133064507,2.1523,232.07,232.01,2.52]
[1732133064508,3.01,232.1,232.03,2.1526]
[1732133064705,2.1521,232.09,232.01,2.52]
[1732133065701,3.01,232.1,232.01,2.52]
[1732133066301,2.1522,232.08,232.04,2.1525]
[1732133067603,2.1522,232.08,231.98,1.299]
[1732133067604,3.01,232.1,231.98,1.299]
[1732133067916,2.1524,232.05,232.0,2.1528]
[1732133068102,2.1524,232.05,231.99,2.52]
[1732133068809,2.1527,232.02,231.97,4.7402]
[1732133069106,10.70115723,232.05,231.97,4.7402]
[1732133070302,10.70115723,232.05,231.97,2.5871]
[1732133070708,13.22115723,232.08,231.97,2.5871]
[1732133070913,2.1527,232.03,231.98,2.153]
[1732133071604,2.1527,232.03,231.97,2.5871]
[1732133071807,13.22115723,232.08,231.97,2.5871]
[1732133071808,2.1525,232.04,231.97,2.5871]
[1732133072008,3.01,232.1,231.97,2.5871]
[1732133072309,2.1521,232.08,232.03,2.1526]
[1732133072515,3.01,232.1,232.03,2.1526]
[1732133073214,2.1521,232.08,232.03,2.1526]
[1732133073414,3.01,232.1,232.04,2.1524]
[1732133073715,2.1522,232.07,232.04,2.1524]
[1732133074210,5.1619,232.1,232.06,2.1523]
[1732133075509,3.01,232.1,232.06,2.1523]
[1732133075811,2.152,232.09,232.05,2.1524]
[1732133076715,5.1619,232.1,232.05,6.8402994]
[1732133076918,9.8502994,232.1,232.03,6.8402994]
[1732133077114,2.1522,232.08,232.05,2.1524]
[1732133077315,9.8502994,232.1,232.03,6.8402994]
[1732133077920,2.1521,232.09,232.05,2.1524]
[1732133078617,2.1522,232.08,232.04,2.1525]
[1732133079311,6.8402994,232.11,232.05,2.1524]
[1732133079519,6.8402994,232.09,232.01,9.3602994]
[1732133080223,6.8402994,232.11,232.03,6.8402994]
[1732133080717,2.1521,232.08,232.05,2.1523]
[1732133081416,6.8402994,232.11,232.05,2.1523]
[1732133081715,2.152,232.09,232.05,2.1523]
[1732133081919,6.8402994,232.13,232.05,6.8402994]
[1732133082112,2.1519,232.11,232.05,6.8402994]
[1732133082513,2.1519,232.11,232.07,2.1522]
[1732133083713,1.2488,232.19,232.09,6.8402994]
[1732133083918,0.3786,232.23,232.11,6.8402994]
[1732133084121,6.8402994,232.18,232.09,6.8402994]
[1732133084417,2.1516,232.14,232.09,6.8402994]
[1732133084820,2.1517,232.13,232.09,6.8402994]
[1732133085812,2.1518,232.12,232.08,4.672]
[1732133087021,6.8402994,232.1,232.08,2.52]
[1732133087327,6.8402994,232.1,232.03,9.3602994]
[1732133089324,2.1521,232.09,232.05,2.1524]
[1732133090827,2.1521,232.09,231.97,3.8522]
[1732133090828,6.8402994,232.06,231.97,13.2124994]
[1732133091420,6.8402994,232.06,232.0,2.1528]
[1732133091421,2.1524,232.05,232.0,2.1528]
[1732133091617,6.8402994,232.06,232.0,2.1528]
[1732133092918,2.1526,232.04,232.0,2.1528]
[1732133094020,2.1524,232.05,232.01,2.1528]
[1732133094216,2.1524,232.05,232.01,8.9930994]
[1732133095015,2.52,232.12,232.03,6.8402994]
[1732133095319,6.8402994,232.11,232.03,6.8402994]
[1732133095717,6.8402994,232.11,232.04,2.1524]
[1732133096223,2.1521,232.09,232.05,6.8402994]
[1732133096422,6.8402994,232.13,232.06,2.1523]
[1732133098226,2.152,232.1,232.06,2.1523]
[1732133098827,6.8402994,232.13,232.05,6.8402994]
[1732133099017,2.1521,232.09,232.05,8.9926994]
[1732133099522,2.1524,232.06,232.03,9.3602994]
[1732133099722,6.8402994,232.11,232.03,9.3602994]
[1732133099921,6.8402994,232.09,232.01,9.3602994]
[1732133100118,6.8402994,232.09,232.01,11.5129994]
[1732133100317,6.8402994,232.09,231.97,3.8522]
[1732133100526,2.17679425,232.12,231.97,3.8522]
[1732133100527,2.1524,232.05,232.01,2.1527]
[1732133100827,6.8402994,232.07,232.01,2.1527]
[1732133101029,6.8402994,232.09,232.02,6.8402994]
[1732133101229,2.1523,232.06,232.02,8.9929994]
[1732133101532,2.1523,232.06,231.98,2.52]
[1732133101533,6.8402994,232.12,232.04,6.8402994]
[1732133101730,6.8402994,232.14,232.07,6.8402994]
[1732133102229,2.1518,232.12,232.07,6.8402994]
[1732133102424,6.8402994,232.14,232.06,2.1523]
[1732133102722,6.8402994,232.14,232.08,6.8402994]
[1732133102923,2.1517,232.13,232.08,6.8402994]
[1732133103126,6.8402994,232.18,232.1,6.8402994]
[1732133103631,6.8402994,232.16,232.08,6.8402994]
[1732133105331,2.1519,232.11,232.08,6.8402994]
[1732133107626,6.8402994,232.16,232.08,6.8402994]
[1732133107831,2.1518,232.12,232.08,8.9923994]
[1732133108022,31.05108293,232.23,232.1,6.8402994]
[1732133108224,6.8402994,232.21,232.13,6.8402994]
[1732133109232,2.1516,232.14,232.13,6.8402994]
[1732133110742,2.1514,232.16,232.13,6.8402994]
[1732133110943,3.01,232.2,232.15,6.8402994]
[1732133111343,2.1514,232.17,232.15,6.8402994]
[1732133111538,3.01,232.2,232.15,6.8402994]
[1732133111739,3.01,232.2,232.17,6.8402994]
[1732133111943,2.1512,232.19,232.17,6.8402994]
[1732133112336,3.01,232.2,232.12,1.3419]
[1732133112546,5.1611,232.2,232.17,6.8402994]
[1732133113043,3.01,232.2,232.19,6.8402994]
[1732133113547,3.01,232.2,232.19,8.9913994]
[1732133114544,0.9829,232.2,232.19,8.9913994]
[1732133114845,6.8402994,232.3,232.19,8.9913994]
[1732133115039,6.8402994,232.3,232.22,6.8402994]
[1732133115440,2.1507,232.24,232.22,6.8402994]
[1732133115839,6.8402994,232.31,232.22,6.8402994]
[1732133116044,6.8402994,232.31,232.24,6.8402994]
[1732133116547,2.1502,232.29,232.24,6.8402994]
[1732133116741,29.79313048,232.37,232.28,6.8402994]
[1732133116952,29.79313048,232.37,232.3,6.8402994]
[1732133117143,2.1496,232.36,232.32,6.8402994]
[1732133117344,29.79313048,232.37,232.32,6.8402994]
[1732133117742,29.79313048,232.37,232.34,6.8402994]
[1732133117945,6.8402994,232.41,232.34,6.8402994]
[1732133118356,5.0947,232.42,232.34,6.8402994]
[1732133118544,6.8402994,232.43,232.36,6.8402994]
[1732133118743,2.52,232.44,232.33,10.66046567]
[1732133119254,2.52,232.48,232.36,10.66046567]
[1732133119552,0.69619768,232.47,232.36,10.66046567]
[1732133119950,2.5747,232.49,232.36,10.66046567]
[1732133120149,0.69618825,232.48,232.36,10.66046567]
[1732133120347,0.69618825,232.48,232.36,12.80996567]
[1732133120645,10.66046567,232.47,232.36,2.1495]
[1732133121252,2.149,232.42,232.36,2.1495]
[1732133121454,2.149,232.42,232.36,12.80996567]
[1732133121953,10.66046567,232.44,232.34,1.3341]
[1732133122352,2.1491,232.41,232.34,1.3341]
[1732133122546,10.66046567,232.44,232.34,1.3341]
[1732133122957,2.1494,232.37,232.34,1.3341]
[1732133123352,11.80046567,232.44,232.34,1.3341]
[1732133123553,1.14,232.44,232.37,10.66046567]
[1732133123952,2.5747,232.49,232.38,2.52]
[1732133124148,2.5747,232.49,232.39,2.1492]
[1732133124149,2.1488,232.45,232.39,2.1492]
[1732133124353,2.1488,232.45,232.38,2.52]
[1732133124354,29.77410643,232.54,232.44,10.66046567]
[1732133124555,2.6352,232.6,232.5,10.66046567]
[1732133124754,2.52,232.63,232.5,10.66046567]
[1732133124948,0.6956644,232.62,232.5,2.52]
[1732133125153,10.66046567,232.62,232.5,2.52]
[1732133125554,2.1481,232.52,232.5,2.52]
[1732133125950,2.52,232.63,232.5,2.52]
[1732133126153,10.66046567,232.67,232.54,10.66046567]
[1732133126350,10.66046567,232.7,232.57,10.66046567]
[1732133126550,2.1473,232.61,232.57,13.16046567]
[1732133127153,2.1473,232.61,232.57,6.59526968]
[1732133128653,2.1473,232.6,232.57,4.09526968]
[1732133128853,2.11861839,232.64,232.45,3.8395]
[1732133129054,2.5,232.65,232.5,10.66046567]
[1732133129262,2.18628872,232.64,232.5,13.16046567]
[1732133129564,4.84848872,232.64,232.5,13.16046567]
[1732133129757,2.6622,232.64,232.5,13.16046567]
[1732133130457,2.6622,232.64,232.53,10.66046567]
[1732133130458,4.80509378,232.64,232.53,10.66046567]
[1732133130659,2.6622,232.64,232.53,10.66046567]
[1732133130854,4.78081839,232.64,232.53,10.66046567]
[1732133131063,2.6622,232.64,232.53,10.66046567]
[1732133131261,2.1477,232.56,232.53,10.66046567]
[1732133132155,1.3418,232.64,232.53,10.66046567]
[1732133132357,11.08268567,232.8,232.61,10.66046567]
[1732133132555,0.69508566,232.79,232.68,10.66046567]
[1732133132863,1.65772,232.8,232.68,10.66046567]
[1732133133461,2.1461,232.74,232.68,10.66046567]
[1732133133758,2.1461,232.74,232.62,1.3367]
[1732133133759,12.31818567,232.8,232.65,10.66046567]
[1732133133957,12.31818567,232.8,232.62,1.3367]
[1732133133958,10.66046567,232.77,232.62,11.99716567]
[1732133135064,17.01684317,232.78,232.62,1.3367]
[1732133136959,29.93684317,232.78,232.59,17.01684317]
[1732133137359,2.1462,232.73,232.59,17.01684317]
[1732133137560,2.5,232.72,232.6,2.1473]
[1732133137861,2.5,232.76,232.63,17.01684317]
[1732133138069,2.5,232.76,232.63,19.51684317]
[1732133138261,2.1464,232.7,232.64,2.1469]
[1732133138561,2.5,232.76,232.63,19.51684317]
[1732133138768,2.1467,232.67,232.63,19.51684317]
[1732133139062,2.1467,232.67,232.44,17.01684317]
[1732133139063,2.5,232.69,232.52,19.51684317]
[1732133139265,2.5,232.68,232.54,2.1478]
[1732133140264,2.5,232.68,232.55,2.1478]
[1732133140657,2.5,232.68,232.52,19.51684317]
[1732133141565,2.1476,232.57,232.52,19.51684317]
[1732133141968,2.5,232.68,232.52,19.51684317]
[1732133142367,2.1475,232.59,232.52,21.66484317]
[1732133142866,2.5,232.68,232.52,21.66484317]
[1732133143062,2.5,232.68,232.52,17.01684317]
[1732133143468,2.5,232.68,232.51,2.5]
[1732133143469,2.1477,232.57,232.51,2.5]
[1732133143665,2.5,232.62,232.46,2.1486]
[1732133143973,2.148,232.53,232.47,2.5]
[1732133144363,2.5,232.61,232.47,4.6484]
[1732133144567,2.1479,232.54,232.47,4.6484]
[1732133144762,2.1479,232.54,232.47,2.1484]
[1732133144968,2.5,232.61,232.47,4.6484]
[1732133145166,2.148,232.53,232.47,4.6484]
[1732133146469,2.5,232.61,232.47,2.5]
[1732133146667,2.5,232.64,232.48,17.01684317]
[1732133147064,2.1474,232.6,232.5,2.1482]
[1732133147270,2.5,232.64,232.5,2.1482]
[1732133147470,2.5,232.64,232.48,17.01684317]
[1732133148376,2.1476,232.57,232.51,2.1481]
[1732133148576,2.5,232.64,232.48,17.01684317]
[1732133149374,17.01684317,232.62,232.45,3.7893]
[1732133149767,29.93684317,232.62,232.42,17.01684317]
[1732133149972,29.93684317,232.62,232.4,2.5]
[1732133149973,17.01684317,232.58,232.4,2.5]
[1732133150273,2.1486,232.47,232.4,4.6492]
[1732133150667,2.1486,232.47,232.4,2.1492]
[1732133150868,2.5,232.51,232.35,2.5]
[1732133151266,2.5,232.51,232.38,2.1493]
[1732133151267,2.1488,232.45,232.38,2.1493]
[1732133151472,2.1488,232.45,232.35,2.5]
[1732133151874,2.1488,232.45,232.38,2.1493]
[1732133153283,2.1488,232.45,232.39,2.1492]
[1732133153776,2.1485,232.48,232.41,2.149]
[1732133153972,2.1485,232.48,232.38,17.01684317]
[1732133154368,2.5,232.53,232.41,2.149]
[1732133155079,2.1485,232.47,232.38,19.16614317]
[1732133155371,2.5,232.53,232.38,17.01684317]
[1732133155977,2.1484,232.48,232.4,2.1491]
[1732133156174,2.1484,232.48,232.38,17.01684317]
[1732133156579,2.1484,232.49,232.41,2.149]
[1732133157078,2.1484,232.48,232.41,4.649]
[1732133157674,2.1477,232.56,232.49,2.1483]
[1732133157878,2.1477,232.56,232.5,1.2996]
[1732133158382,2.1476,232.57,232.5,1.2996]
[1732133158577,2.5,232.65,232.5,1.2996]
[1732133158776,13.14448569,232.65,232.51,10.64448569]
[1732133158976,2.1478,232.56,232.51,10.64448569]
[1732133159473,10.64448569,232.68,232.54,10.64448569]
[1732133159879,10.64448569,232.68,232.54,13.14448569]
[1732133160377,2.1475,232.58,232.54,13.14448569]
[1732133160581,2.5,232.64,232.5,1.2996]
[1732133160776,2.1478,232.56,232.51,2.5]
[1732133161275,17.03159176,232.63,232.5,1.2996]
[1732133162286,2.1481,232.51,232.5,1.2996]
[1732133162681,2.5,232.57,232.4,17.03159176]
[1732133162981,17.03159176,232.54,232.37,4.6493]
[1732133163283,2.1489,232.43,232.37,4.6493]
[1732133163478,17.03159176,232.54,232.37,2.5]
[1732133163886,1.2996,232.56,232.37,2.5]
[1732133164586,2.1489,232.43,232.37,2.5]
[1732133165380,2.149,232.42,232.37,4.6494]
[1732133165984,2.149,232.42,232.33,3.8944]
[1732133165985,2.5,232.5,232.33,3.8944]
[1732133166182,2.5,232.5,232.34,2.5]
[1732133166481,2.5,232.5,232.36,17.03159176]
[1732133166886,2.1491,232.41,232.36,17.03159176]
[1732133170278,2.1492,232.4,232.36,17.03159176]
[1732133170482,2.5,232.5,232.33,6.0442]
[1732133170686,17.03159176,232.49,232.33,3.8944]
[1732133170880,18.27769176,232.49,232.33,3.8944]
[1732133171186,17.03159176,232.45,232.33,1.3015]
[1732133171386,2.5,232.44,232.33,1.3015]
[1732133171884,2.5,232.44,232.21,2.654]
[1732133171885,17.03159176,232.41,232.27,2.5]
[1732133172085,17.03159176,232.37,232.24,2.5]
[1732133172385,2.5,232.36,232.22,3.8445]
[1732133172585,2.5,232.36,232.22,1.3445]
[1732133172586,17.03159176,232.33,232.22,1.3445]
[1732133172787,17.03159176,232.33,232.2,2.5]
[1732133172987,17.03159176,232.33,232.16,2.5]
[1732133173494,2.1511,232.19,232.15,2.5]
[1732133173688,17.03159176,232.29,232.09,3.9985]
[1732133173689,2.5,232.27,232.09,3.9985]
[1732133173888,2.5,232.27,232.1,2.5]
[1732133174292,2.5,232.27,232.11,2.1518]
[1732133174293,2.1508,232.22,232.11,2.1518]
[1732133174493,2.1508,232.22,232.12,17.03159176]
[1732133174695,2.5,232.27,232.12,17.03159176]
[1732133174887,17.03159176,232.33,232.1,2.5]
[1732133175087,2.5,232.38,232.17,17.03159176]
[1732133175288,2.5,232.38,232.18,2.5]
[1732133175485,17.03159176,232.35,232.18,2.5]
[1732133175689,17.03159176,232.35,232.19,1.2477]
[1732133175885,1.2256,232.42,232.2,2.5]